[Event "Titled Tuesday Blitz November 9 2021"]
[White "Holt, Conrad"]
[Black "Jobava, Baadur"]
[WhiteFideId "2034387"]
[BlackFideId "13601520"]
[WhiteElo "2586"]
[BlackElo "2731"]
[Result "1/2-1/2"]
[Round "06"]
[TimeControl "180+1"]
[Date "2021.11.09"]
[WhiteClock "0:00:04"]
[BlackClock "0:00:14"]

1. d4 {[%clk 0:03:00]}  d5 {[%clk 0:02:58]} 2. c4 {[%clk 0:03:01]}  c6 {[%clk 0:02:59]} 3. Nc3 {[%clk 0:03:01]}  Nf6 {[%clk 0:02:59]} 4. e3 {[%clk 0:03:01]}  Nbd7 {[%clk 0:02:58]} 5. cxd5 {[%clk 0:02:58]}  cxd5 {[%clk 0:02:57]} 6. f4 {[%clk 0:02:55]}  Nb6 {[%clk 0:02:57]} 7. Bd3 {[%clk 0:02:54]}  g6 {[%clk 0:02:53]} 8. Nf3 {[%clk 0:02:54]}  Bf5 {[%clk 0:02:53]} 9. Ne5 {[%clk 0:02:46]}  Bxd3 {[%clk 0:02:52]} 10. Qxd3 {[%clk 0:02:46]}  e6 {[%clk 0:02:52]} 11. Qb5+ {[%clk 0:02:31]}  Nfd7 {[%clk 0:02:49]} 12. e4 {[%clk 0:02:26]}  a6 {[%clk 0:02:45]} 13. Qb3 {[%clk 0:02:25]}  Nf6 {[%clk 0:02:37]} 14. f5 {[%clk 0:02:16]}  exf5 {[%clk 0:02:24]} 15. exf5 {[%clk 0:02:15]}  Bg7 {[%clk 0:02:21]} 16. O-O {[%clk 0:02:14]}  O-O {[%clk 0:02:20]} 17. Bg5 {[%clk 0:02:10]}  Qd6 {[%clk 0:02:12]} 18. Rae1 {[%clk 0:02:03]}  Rae8 {[%clk 0:02:05]} 19. a4 {[%clk 0:01:17]}  Nfd7 {[%clk 0:01:48]} 20. a5 {[%clk 0:01:11]}  Nc4 {[%clk 0:01:48]} 21. fxg6 {[%clk 0:00:28]}  hxg6 {[%clk 0:01:32]} 22. Nxc4 {[%clk 0:00:17]}  dxc4 {[%clk 0:01:33]} 23. Qxc4 {[%clk 0:00:17]}  Qxd4+ {[%clk 0:01:32]} 24. Qxd4 {[%clk 0:00:17]}  Bxd4+ {[%clk 0:01:33]} 25. Kh1 {[%clk 0:00:17]}  Nc5 {[%clk 0:00:58]} 26. Bh6 {[%clk 0:00:11]}  Rxe1 {[%clk 0:00:45]} 27. Rxe1 {[%clk 0:00:12]}  Rd8 {[%clk 0:00:42]} 28. Rd1 {[%clk 0:00:12]}  Ne6 {[%clk 0:00:39]} 29. Bc1 {[%clk 0:00:09]}  Bxc3 {[%clk 0:00:37]} 30. Rxd8+ {[%clk 0:00:10]}  Nxd8 {[%clk 0:00:38]} 31. bxc3 {[%clk 0:00:11]}  Nc6 {[%clk 0:00:39]} 32. Kg1 {[%clk 0:00:11]}  Nxa5 {[%clk 0:00:39]} 33. Kf2 {[%clk 0:00:12]}  Kf8 {[%clk 0:00:34]} 34. Ke3 {[%clk 0:00:11]}  Ke7 {[%clk 0:00:33]} 35. Kd3 {[%clk 0:00:10]}  Ke6 {[%clk 0:00:33]} 36. g4 {[%clk 0:00:11]}  f5 {[%clk 0:00:33]} 37. gxf5+ {[%clk 0:00:09]}  Kxf5 {[%clk 0:00:32]} 38. c4 {[%clk 0:00:09]}  Ke6 {[%clk 0:00:29]} 39. Bd2 {[%clk 0:00:06]}  Nc6 {[%clk 0:00:25]} 40. Ke4 {[%clk 0:00:06]}  Ne5 {[%clk 0:00:24]} 41. c5 {[%clk 0:00:05]}  Nc6 {[%clk 0:00:22]} 42. Bc3 {[%clk 0:00:05]}  a5 {[%clk 0:00:22]} 43. h4 {[%clk 0:00:05]}  a4 {[%clk 0:00:22]} 44. Bb2 {[%clk 0:00:06]}  Na7 {[%clk 0:00:20]} 45. Kd4 {[%clk 0:00:04]}  a3 {[%clk 0:00:20]} 46. Ba1 {[%clk 0:00:04]}  Kd7 {[%clk 0:00:20]} 47. Kd5 {[%clk 0:00:04]}  Nb5 {[%clk 0:00:19]} 48. Kc4 {[%clk 0:00:04]}  Kc6 {[%clk 0:00:20]} 49. Kb4 {[%clk 0:00:04]}  a2 {[%clk 0:00:20]} 50. Kb3 {[%clk 0:00:05]}  Kxc5 {[%clk 0:00:20]} 51. Kxa2 {[%clk 0:00:05]}  Kc4 {[%clk 0:00:21]} 52. Bf6 {[%clk 0:00:04]}  Nd4 {[%clk 0:00:19]} 53. Ka3 {[%clk 0:00:04]}  b5 {[%clk 0:00:20]} 54. Kb2 {[%clk 0:00:03]}  b4 {[%clk 0:00:20]} 55. Bd8 {[%clk 0:00:04]}  b3 {[%clk 0:00:20]} 56. Bf6 {[%clk 0:00:04]}  Nf5 {[%clk 0:00:19]} 57. Ka3 {[%clk 0:00:04]}  Ne3 {[%clk 0:00:18]} 58. Kb2 {[%clk 0:00:04]}  Nd1+ {[%clk 0:00:18]} 59. Kc1 {[%clk 0:00:04]}  Nc3 {[%clk 0:00:17]} 60. Kb2 {[%clk 0:00:04]}  Ne4 {[%clk 0:00:17]} 61. Be7 {[%clk 0:00:04]}  Nf2 {[%clk 0:00:17]} 62. Bf6 {[%clk 0:00:03]}  Nd3+ {[%clk 0:00:18]} 63. Kb1 {[%clk 0:00:03]}  Kd5 {[%clk 0:00:17]} 64. Bg7 {[%clk 0:00:02]}  Ke4 {[%clk 0:00:17]} 65. Bf6 {[%clk 0:00:02]}  Kf5 {[%clk 0:00:16]} 66. Bd8 {[%clk 0:00:03]}  Kg4 {[%clk 0:00:15]} 67. Be7 {[%clk 0:00:03]}  Kh5 {[%clk 0:00:15]} 68. Bd8 {[%clk 0:00:04]}  Kg4 {[%clk 0:00:15]} 69. Be7 {[%clk 0:00:04]}  Kf5 {[%clk 0:00:13]} 70. Bd8 {[%clk 0:00:04]}  Ke4 {[%clk 0:00:13]} 71. Bf6 {[%clk 0:00:04]}  Kd5 {[%clk 0:00:13]} 72. Bg7 {[%clk 0:00:04]}  Kc4 {[%clk 0:00:13]} 73. Bf6 {[%clk 0:00:05]}  Kb4 {[%clk 0:00:13]} 74. Be7+ {[%clk 0:00:05]}  Kc3 {[%clk 0:00:13]} 75. Bf6+ {[%clk 0:00:06]}  Kd2 {[%clk 0:00:13]} 76. Bg5+ {[%clk 0:00:06]}  Ke2 {[%clk 0:00:12]} 77. Bf6 {[%clk 0:00:06]}  Nc5 {[%clk 0:00:12]} 78. Kb2 {[%clk 0:00:06]}  Kd3 {[%clk 0:00:12]} 79. Be7 {[%clk 0:00:06]}  Kc4 {[%clk 0:00:12]} 80. Bd8 {[%clk 0:00:05]}  Na4+ {[%clk 0:00:11]} 81. Kb1 {[%clk 0:00:05]}  Nc3+ {[%clk 0:00:08]} 82. Kb2 {[%clk 0:00:05]}  Nd1+ {[%clk 0:00:08]} 83. Kb1 {[%clk 0:00:05]}  Ne3 {[%clk 0:00:08]} 84. Bf6 {[%clk 0:00:05]}  Nd5 {[%clk 0:00:07]} 85. Be5 {[%clk 0:00:05]}  Nb4 {[%clk 0:00:05]} 86. Bf6 {[%clk 0:00:05]}  Nc6 {[%clk 0:00:05]} 87. Kb2 {[%clk 0:00:05]}  Kb4 {[%clk 0:00:05]} 88. Bg5 {[%clk 0:00:05]}  Kc4 {[%clk 0:00:05]} 89. Bf6 {[%clk 0:00:05]}  Nb4 {[%clk 0:00:06]} 90. Kb1 {[%clk 0:00:04]}  Nd3 {[%clk 0:00:07]} 91. Bg5 {[%clk 0:00:03]}  Kd5 {[%clk 0:00:08]} 92. Bf6 {[%clk 0:00:04]}  Ke4 {[%clk 0:00:08]} 93. Bd8 {[%clk 0:00:04]}  Kf5 {[%clk 0:00:08]} 94. Be7 {[%clk 0:00:05]}  Kg4 {[%clk 0:00:08]} 95. Bd8 {[%clk 0:00:05]}  Kh5 {[%clk 0:00:07]} 96. Be7 {[%clk 0:00:05]}  Nf4 {[%clk 0:00:07]} 97. Kb2 {[%clk 0:00:05]}  Ng2 {[%clk 0:00:08]} 98. Kxb3 {[%clk 0:00:06]}  Nxh4 {[%clk 0:00:08]} 99. Kc2 {[%clk 0:00:06]}  Nf5 {[%clk 0:00:09]} 100. Bf6 {[%clk 0:00:06]}  Ne3+ {[%clk 0:00:08]} 101. Kd3 {[%clk 0:00:06]}  Nd5 {[%clk 0:00:09]} 102. Bd8 {[%clk 0:00:07]}  Kg4 {[%clk 0:00:09]} 103. Ke4 {[%clk 0:00:06]}  Nf4 {[%clk 0:00:09]} 104. Ke3 {[%clk 0:00:06]}  Kf5 {[%clk 0:00:09]} 105. Kf3 {[%clk 0:00:06]}  Nd5 {[%clk 0:00:09]} 106. Kg3 {[%clk 0:00:06]}  Nc3 {[%clk 0:00:08]} 107. Kf3 {[%clk 0:00:06]}  Ne4 {[%clk 0:00:09]} 108. Ke3 {[%clk 0:00:06]}  Nd6 {[%clk 0:00:09]} 109. Kf3 {[%clk 0:00:06]}  Nf7 {[%clk 0:00:10]} 110. Be7 {[%clk 0:00:07]}  Ne5+ {[%clk 0:00:10]} 111. Kg3 {[%clk 0:00:06]}  Nc6 {[%clk 0:00:11]} 112. Ba3 {[%clk 0:00:05]}  g5 {[%clk 0:00:09]} 113. Bc1 {[%clk 0:00:04]}  g4 {[%clk 0:00:10]} 114. Bf4 {[%clk 0:00:05]}  Nd4 {[%clk 0:00:10]} 115. Bb8 {[%clk 0:00:05]}  Ne6 {[%clk 0:00:11]} 116. Kf2 {[%clk 0:00:05]}  Nc5 {[%clk 0:00:10]} 117. Ke3 {[%clk 0:00:05]}  Ne4 {[%clk 0:00:11]} 118. Bc7 {[%clk 0:00:05]}  Nf6 {[%clk 0:00:11]} 119. Bb8 {[%clk 0:00:05]}  Nd5+ {[%clk 0:00:12]} 120. Kf2 {[%clk 0:00:04]}  Nb4 {[%clk 0:00:13]} 121. Ke3 {[%clk 0:00:04]}  Na6 {[%clk 0:00:14]} 122. Bd6 {[%clk 0:00:04]}  Ke6 {[%clk 0:00:13]} 123. Kf4 {[%clk 0:00:04]}  g3 {[%clk 0:00:14]} 124. Kxg3 {[%clk 0:00:04]} 1/2-1/2


[Site "https://www.chess.com"]

[Event "Titled Tuesday Blitz November 9 2021"]
[White "Ibrahimli, Murad"]
[Black "Libiszewski, Fabien"]
[WhiteFideId "13410229"]
[BlackFideId "616834"]
[WhiteElo "2109"]
[BlackElo "2440"]
[Result "1-0"]
[Round "06"]
[TimeControl "180+1"]
[Date "2021.11.09"]
[WhiteClock "0:00:13"]
[BlackClock "0:00:01"]

1. Nf3 {[%clk 0:03:00]}  g6 {[%clk 0:02:59]} 2. c4 {[%clk 0:02:59]}  Bg7 {[%clk 0:02:59]} 3. d4 {[%clk 0:02:59]}  Nf6 {[%clk 0:03:00]} 4. Nc3 {[%clk 0:02:59]}  O-O {[%clk 0:03:00]} 5. e4 {[%clk 0:02:59]}  d6 {[%clk 0:03:01]} 6. Be2 {[%clk 0:03:00]}  Na6 {[%clk 0:03:02]} 7. O-O {[%clk 0:02:58]}  e5 {[%clk 0:03:02]} 8. dxe5 {[%clk 0:02:56]}  dxe5 {[%clk 0:03:01]} 9. Bg5 {[%clk 0:02:56]}  c6 {[%clk 0:02:38]} 10. h3 {[%clk 0:02:51]}  h6 {[%clk 0:02:21]} 11. Be3 {[%clk 0:02:49]}  Qe7 {[%clk 0:02:21]} 12. Qc1 {[%clk 0:02:39]}  Nc5 {[%clk 0:02:11]} 13. Qc2 {[%clk 0:02:25]}  Nh5 {[%clk 0:02:06]} 14. Rfd1 {[%clk 0:02:18]}  Ne6 {[%clk 0:02:04]} 15. a3 {[%clk 0:02:11]}  Nhf4 {[%clk 0:01:52]} 16. Bf1 {[%clk 0:02:11]}  Qf6 {[%clk 0:01:53]} 17. Bxf4 {[%clk 0:01:50]}  Nxf4 {[%clk 0:01:49]} 18. Nh2 {[%clk 0:01:44]}  h5 {[%clk 0:01:50]} 19. c5 {[%clk 0:01:38]}  Ne6 {[%clk 0:01:48]} 20. b4 {[%clk 0:01:34]}  Nd4 {[%clk 0:01:46]} 21. Qb2 {[%clk 0:01:34]}  Be6 {[%clk 0:01:33]} 22. Ne2 {[%clk 0:01:33]}  Rfd8 {[%clk 0:01:21]} 23. Nxd4 {[%clk 0:01:33]}  exd4 {[%clk 0:01:22]} 24. Bd3 {[%clk 0:01:31]}  Qf4 {[%clk 0:01:19]} 25. g3 {[%clk 0:01:26]}  Qc7 {[%clk 0:01:12]} 26. h4 {[%clk 0:01:25]}  a5 {[%clk 0:01:09]} 27. Nf3 {[%clk 0:01:22]}  Bg4 {[%clk 0:01:07]} 28. Kg2 {[%clk 0:01:22]}  Qd7 {[%clk 0:00:39]} 29. Re1 {[%clk 0:01:17]}  Bxf3+ {[%clk 0:00:30]} 30. Kxf3 {[%clk 0:01:17]}  Qh3 {[%clk 0:00:31]} 31. Rh1 {[%clk 0:01:15]}  Qg4+ {[%clk 0:00:29]} 32. Kg2 {[%clk 0:01:15]}  Qe6 {[%clk 0:00:24]} 33. b5 {[%clk 0:01:04]}  Qe7 {[%clk 0:00:23]} 34. Rac1 {[%clk 0:01:03]}  Bh6 {[%clk 0:00:15]} 35. Rc2 {[%clk 0:01:01]}  Qf6 {[%clk 0:00:13]} 36. Re1 {[%clk 0:00:58]}  Bf8 {[%clk 0:00:12]} 37. a4 {[%clk 0:00:56]}  Qe5 {[%clk 0:00:12]} 38. f4 {[%clk 0:00:55]}  Qe7 {[%clk 0:00:11]} 39. e5 {[%clk 0:00:56]}  Rd5 {[%clk 0:00:08]} 40. Rec1 {[%clk 0:00:51]}  f5 {[%clk 0:00:07]} 41. Bc4 {[%clk 0:00:51]}  Rd8 {[%clk 0:00:07]} 42. Qxd4 {[%clk 0:00:47]}  Kh7 {[%clk 0:00:07]} 43. Bxd5 {[%clk 0:00:48]}  Rxd5 {[%clk 0:00:08]} 44. Qe3 {[%clk 0:00:39]}  Qd7 {[%clk 0:00:09]} 45. e6 {[%clk 0:00:35]}  Qd8 {[%clk 0:00:08]} 46. bxc6 {[%clk 0:00:34]}  bxc6 {[%clk 0:00:08]} 47. Re2 {[%clk 0:00:33]}  Be7 {[%clk 0:00:08]} 48. Rcc2 {[%clk 0:00:29]}  Rd3 {[%clk 0:00:08]} 49. Qe5 {[%clk 0:00:28]}  Rd5 {[%clk 0:00:08]} 50. Qb2 {[%clk 0:00:20]}  Rd3 {[%clk 0:00:07]} 51. Qb7 {[%clk 0:00:20]}  Qd5+ {[%clk 0:00:07]} 52. Kh2 {[%clk 0:00:21]}  Qd8 {[%clk 0:00:04]} 53. Qxc6 {[%clk 0:00:19]}  Kh6 {[%clk 0:00:04]} 54. Qb7 {[%clk 0:00:16]}  Rd1 {[%clk 0:00:02]} 55. Qf3 {[%clk 0:00:13]}  Qd4 {[%clk 0:00:01]} 56. Qe3 {[%clk 0:00:12]}  Qd5 {[%clk 0:00:01]} 57. Rg2 {[%clk 0:00:13]} 1-0


[Site "https://www.chess.com"]

[Event "Titled Tuesday Blitz November 9 2021"]
[White "Karttunen, Mika"]
[Black "Suarez Garcia, Carlos"]
[WhiteFideId "502081"]
[BlackFideId "22230858"]
[WhiteElo "2343"]
[BlackElo "2487"]
[Result "0-1"]
[Round "06"]
[TimeControl "180+1"]
[Date "2021.11.09"]
[WhiteClock "0:00:17"]
[BlackClock "0:00:20"]

1. e4 {[%clk 0:03:00]}  c5 {[%clk 0:02:54]} 2. Nf3 {[%clk 0:03:00]}  e6 {[%clk 0:02:54]} 3. d4 {[%clk 0:03:00]}  cxd4 {[%clk 0:02:55]} 4. Nxd4 {[%clk 0:03:00]}  Nc6 {[%clk 0:02:56]} 5. Nc3 {[%clk 0:03:01]}  Qc7 {[%clk 0:02:57]} 6. Be3 {[%clk 0:02:59]}  a6 {[%clk 0:02:57]} 7. Qf3 {[%clk 0:02:59]}  d6 {[%clk 0:02:57]} 8. O-O-O {[%clk 0:02:56]}  Bd7 {[%clk 0:02:57]} 9. Qg3 {[%clk 0:02:56]}  Rc8 {[%clk 0:02:57]} 10. Be2 {[%clk 0:02:46]}  g6 {[%clk 0:02:44]} 11. Nxc6 {[%clk 0:02:32]}  bxc6 {[%clk 0:02:37]} 12. Bf4 {[%clk 0:01:55]}  e5 {[%clk 0:02:32]} 13. Bxe5 {[%clk 0:01:56]}  dxe5 {[%clk 0:02:29]} 14. Rxd7 {[%clk 0:01:56]}  Kxd7 {[%clk 0:01:57]} 15. Bg4+ {[%clk 0:01:55]}  f5 {[%clk 0:01:53]} 16. exf5 {[%clk 0:01:51]}  Ke8 {[%clk 0:01:11]} 17. fxg6 {[%clk 0:01:46]}  Rd8 {[%clk 0:01:11]} 18. Be6 {[%clk 0:01:39]}  Bh6+ {[%clk 0:00:48]} 19. Kb1 {[%clk 0:01:39]}  Nf6 {[%clk 0:00:42]} 20. Re1 {[%clk 0:01:09]}  Kf8 {[%clk 0:00:42]} 21. Qh4 {[%clk 0:00:53]}  Kg7 {[%clk 0:00:35]} 22. gxh7 {[%clk 0:00:34]}  Rxh7 {[%clk 0:00:36]} 23. Qg3+ {[%clk 0:00:31]}  Kh8 {[%clk 0:00:34]} 24. Bf5 {[%clk 0:00:29]}  Bf4 {[%clk 0:00:25]} 25. Qg6 {[%clk 0:00:27]}  Qg7 {[%clk 0:00:21]} 26. h3 {[%clk 0:00:26]}  Qxg6 {[%clk 0:00:21]} 27. Bxg6 {[%clk 0:00:27]}  Rg7 {[%clk 0:00:22]} 28. g3 {[%clk 0:00:17]}  Rxg6 {[%clk 0:00:21]} 29. g4 {[%clk 0:00:17]}  Nd5 {[%clk 0:00:20]} 0-1


[Site "https://www.chess.com"]

[Event "Titled Tuesday Blitz November 9 2021"]
[White "Kobalia, Mikhail"]
[Black "Grischuk, Alexander"]
[WhiteFideId "4119150"]
[BlackFideId "4126025"]
[WhiteElo "2543"]
[BlackElo "2757"]
[Result "1/2-1/2"]
[Round "06"]
[TimeControl "180+1"]
[Date "2021.11.09"]
[WhiteClock "0:00:11"]
[BlackClock "0:00:09"]

1. e4 {[%clk 0:03:00]}  e6 {[%clk 0:02:59]} 2. d3 {[%clk 0:03:00]}  c5 {[%clk 0:02:58]} 3. Nf3 {[%clk 0:02:59]}  Nc6 {[%clk 0:02:58]} 4. g3 {[%clk 0:02:59]}  Nge7 {[%clk 0:02:57]} 5. h4 {[%clk 0:02:53]}  d5 {[%clk 0:02:54]} 6. Nbd2 {[%clk 0:02:50]}  e5 {[%clk 0:02:51]} 7. Bg2 {[%clk 0:02:50]}  Bg4 {[%clk 0:02:49]} 8. c3 {[%clk 0:02:46]}  Qd7 {[%clk 0:02:43]} 9. Qb3 {[%clk 0:02:45]}  Rd8 {[%clk 0:01:42]} 10. O-O {[%clk 0:02:38]}  f6 {[%clk 0:01:36]} 11. Re1 {[%clk 0:01:59]}  d4 {[%clk 0:01:34]} 12. cxd4 {[%clk 0:01:52]}  cxd4 {[%clk 0:01:34]} 13. Nc4 {[%clk 0:01:48]}  Nc8 {[%clk 0:01:31]} 14. Bd2 {[%clk 0:01:42]}  Be6 {[%clk 0:01:29]} 15. Rac1 {[%clk 0:01:40]}  Nd6 {[%clk 0:01:26]} 16. Nxd6+ {[%clk 0:01:34]}  Bxd6 {[%clk 0:01:27]} 17. Qa4 {[%clk 0:01:34]}  a6 {[%clk 0:01:20]} 18. a3 {[%clk 0:01:32]}  O-O {[%clk 0:01:17]} 19. Kh2 {[%clk 0:01:30]}  Qf7 {[%clk 0:01:15]} 20. Qd1 {[%clk 0:01:23]}  h6 {[%clk 0:01:11]} 21. Bh3 {[%clk 0:01:22]}  f5 {[%clk 0:01:10]} 22. Qe2 {[%clk 0:01:12]}  Kh8 {[%clk 0:00:56]} 23. Bxf5 {[%clk 0:01:05]}  Bxf5 {[%clk 0:00:57]} 24. exf5 {[%clk 0:01:05]}  Qxf5 {[%clk 0:00:58]} 25. Kg2 {[%clk 0:01:05]}  Rf7 {[%clk 0:00:56]} 26. Rf1 {[%clk 0:01:01]}  Rdf8 {[%clk 0:00:53]} 27. Nh2 {[%clk 0:01:01]}  Ne7 {[%clk 0:00:46]} 28. Qe4 {[%clk 0:00:53]}  Qe6 {[%clk 0:00:45]} 29. Qxb7 {[%clk 0:00:32]}  Nd5 {[%clk 0:00:41]} 30. Qxa6 {[%clk 0:00:32]}  e4 {[%clk 0:00:41]} 31. Rc6 {[%clk 0:00:31]}  e3 {[%clk 0:00:30]} 32. Rxd6 {[%clk 0:00:27]}  Rxf2+ {[%clk 0:00:30]} 33. Rxf2 {[%clk 0:00:18]}  Rxf2+ {[%clk 0:00:31]} 34. Kh1 {[%clk 0:00:17]}  Qh3 {[%clk 0:00:28]} 35. Rxh6+ {[%clk 0:00:15]}  gxh6 {[%clk 0:00:24]} 36. Qxh6+ {[%clk 0:00:14]}  Kg8 {[%clk 0:00:25]} 37. Qg5+ {[%clk 0:00:13]}  Kf8 {[%clk 0:00:22]} 38. Qd8+ {[%clk 0:00:12]}  Kg7 {[%clk 0:00:16]} 39. Qg5+ {[%clk 0:00:11]}  Kh7 {[%clk 0:00:10]} 40. Qh5+ {[%clk 0:00:12]}  Kg8 {[%clk 0:00:10]} 41. Qg5+ {[%clk 0:00:11]}  Kf8 {[%clk 0:00:09]} 42. Qd8+ {[%clk 0:00:10]}  Kg7 {[%clk 0:00:10]} 43. Qg5+ {[%clk 0:00:10]}  Kh7 {[%clk 0:00:09]} 44. Qh5+ {[%clk 0:00:10]}  Kg7 {[%clk 0:00:09]} 45. Qg5+ {[%clk 0:00:11]} 1/2-1/2


[Site "https://www.chess.com"]

[Event "Titled Tuesday Blitz November 9 2021"]
[White "Kovalenko, Igor"]
[Black "Bortnyk, Mykola"]
[WhiteFideId "14117908"]
[BlackFideId "14120836"]
[WhiteElo "2629"]
[BlackElo "2582"]
[Result "1/2-1/2"]
[Round "06"]
[TimeControl "180+1"]
[Date "2021.11.09"]
[WhiteClock "0:00:52"]
[BlackClock "0:00:58"]

1. e4 {[%clk 0:02:52]}  Nf6 {[%clk 0:02:59]} 2. Nc3 {[%clk 0:02:50]}  d5 {[%clk 0:02:59]} 3. exd5 {[%clk 0:02:50]}  Nxd5 {[%clk 0:03:00]} 4. Nf3 {[%clk 0:02:49]}  Bf5 {[%clk 0:02:58]} 5. Bc4 {[%clk 0:02:48]}  e6 {[%clk 0:02:57]} 6. O-O {[%clk 0:02:47]}  Be7 {[%clk 0:02:57]} 7. Re1 {[%clk 0:02:44]}  Nb6 {[%clk 0:02:51]} 8. Bf1 {[%clk 0:02:42]}  Nc6 {[%clk 0:02:46]} 9. d3 {[%clk 0:02:43]}  O-O {[%clk 0:02:46]} 10. h3 {[%clk 0:02:42]}  h6 {[%clk 0:02:45]} 11. g3 {[%clk 0:02:42]}  Nd5 {[%clk 0:02:36]} 12. Bd2 {[%clk 0:02:39]}  Bf6 {[%clk 0:02:36]} 13. Bg2 {[%clk 0:02:39]}  Re8 {[%clk 0:02:30]} 14. Rb1 {[%clk 0:02:39]}  Nd4 {[%clk 0:02:30]} 15. Ne4 {[%clk 0:02:38]}  Nxf3+ {[%clk 0:02:26]} 16. Qxf3 {[%clk 0:02:38]}  Be7 {[%clk 0:02:24]} 17. a3 {[%clk 0:02:36]}  c6 {[%clk 0:02:23]} 18. Rbd1 {[%clk 0:02:35]}  Qb6 {[%clk 0:02:21]} 19. Bc1 {[%clk 0:02:35]}  Rad8 {[%clk 0:02:21]} 20. Nd2 {[%clk 0:02:33]}  Qc7 {[%clk 0:02:16]} 21. Nc4 {[%clk 0:02:33]}  Bf6 {[%clk 0:02:13]} 22. Qe2 {[%clk 0:02:30]}  b5 {[%clk 0:02:08]} 23. Ne5 {[%clk 0:02:29]}  a5 {[%clk 0:02:05]} 24. Kh2 {[%clk 0:02:29]}  a4 {[%clk 0:02:03]} 25. c4 {[%clk 0:02:19]}  Ne7 {[%clk 0:01:59]} 26. Bf4 {[%clk 0:02:14]}  g5 {[%clk 0:01:49]} 27. Ng4 {[%clk 0:02:13]}  gxf4 {[%clk 0:01:45]} 28. Nxf6+ {[%clk 0:02:12]}  Kh8 {[%clk 0:01:43]} 29. Nxe8 {[%clk 0:02:03]}  Rxe8 {[%clk 0:01:37]} 30. Qe5+ {[%clk 0:02:03]}  Qxe5 {[%clk 0:01:37]} 31. Rxe5 {[%clk 0:02:04]}  fxg3+ {[%clk 0:01:36]} 32. fxg3 {[%clk 0:02:04]}  Rb8 {[%clk 0:01:31]} 33. cxb5 {[%clk 0:02:04]}  cxb5 {[%clk 0:01:31]} 34. g4 {[%clk 0:02:02]}  Bg6 {[%clk 0:01:31]} 35. Rd2 {[%clk 0:02:00]}  b4 {[%clk 0:01:29]} 36. Ra5 {[%clk 0:02:00]}  bxa3 {[%clk 0:01:29]} 37. bxa3 {[%clk 0:02:01]}  Rb3 {[%clk 0:01:27]} 38. Rxa4 {[%clk 0:02:02]}  Bxd3 {[%clk 0:01:26]} 39. Ra7 {[%clk 0:02:01]}  Ng6 {[%clk 0:01:23]} 40. a4 {[%clk 0:01:58]}  Kg7 {[%clk 0:01:19]} 41. a5 {[%clk 0:01:57]}  Ra3 {[%clk 0:01:19]} 42. Rf2 {[%clk 0:01:55]}  Ne5 {[%clk 0:01:18]} 43. Rf4 {[%clk 0:01:34]}  Ra2 {[%clk 0:01:17]} 44. Kg3 {[%clk 0:01:35]}  Ra3 {[%clk 0:01:17]} 45. Rf2 {[%clk 0:01:28]}  Bf1+ {[%clk 0:01:07]} 46. Kh2 {[%clk 0:01:28]}  Bd3 {[%clk 0:01:06]} 47. Ra8 {[%clk 0:01:27]}  Bc4 {[%clk 0:01:03]} 48. Rd2 {[%clk 0:01:21]}  Bd3 {[%clk 0:01:01]} 49. Rb2 {[%clk 0:01:17]}  Bc4 {[%clk 0:00:59]} 50. Rbb8 {[%clk 0:01:11]}  Ra2 {[%clk 0:00:59]} 51. Kg3 {[%clk 0:01:11]}  Ra3+ {[%clk 0:00:58]} 52. Kh2 {[%clk 0:01:10]}  Ra2 {[%clk 0:00:58]} 53. Rg8+ {[%clk 0:01:10]}  Kf6 {[%clk 0:00:58]} 54. Kg3 {[%clk 0:01:10]}  Ra3+ {[%clk 0:00:58]} 55. Kh2 {[%clk 0:01:01]}  Ra2 {[%clk 0:00:58]} 56. Kg3 {[%clk 0:01:01]}  Ra3+ {[%clk 0:00:58]} 57. Kh2 {[%clk 0:00:52]}  Ra2 {[%clk 0:00:58]} 1/2-1/2


[Site "https://www.chess.com"]

[Event "Titled Tuesday Blitz November 9 2021"]
[White "Madaminov, Mukhiddin"]
[Black "Kollars, Dmitrij"]
[WhiteFideId "14210703"]
[BlackFideId "12909572"]
[WhiteElo "1855"]
[BlackElo "2584"]
[Result "0-1"]
[Round "06"]
[TimeControl "180+1"]
[Date "2021.11.09"]
[WhiteClock "0:00:01"]
[BlackClock "0:00:24"]

1. e4 {[%clk 0:03:00]}  e5 {[%clk 0:02:59]} 2. Nf3 {[%clk 0:03:01]}  Nc6 {[%clk 0:03:00]} 3. d4 {[%clk 0:03:01]}  exd4 {[%clk 0:03:00]} 4. Nxd4 {[%clk 0:03:02]}  Nf6 {[%clk 0:03:00]} 5. Nxc6 {[%clk 0:03:03]}  bxc6 {[%clk 0:03:00]} 6. e5 {[%clk 0:03:03]}  Qe7 {[%clk 0:03:00]} 7. Qe2 {[%clk 0:03:04]}  Nd5 {[%clk 0:03:01]} 8. c4 {[%clk 0:03:04]}  Nb6 {[%clk 0:03:01]} 9. Nc3 {[%clk 0:03:01]}  Ba6 {[%clk 0:03:01]} 10. Qe4 {[%clk 0:03:02]}  f6 {[%clk 0:03:01]} 11. exf6 {[%clk 0:02:59]}  gxf6 {[%clk 0:03:02]} 12. b3 {[%clk 0:02:47]}  O-O-O {[%clk 0:02:55]} 13. Qxe7 {[%clk 0:02:46]}  Bxe7 {[%clk 0:02:56]} 14. Bb2 {[%clk 0:02:39]}  d5 {[%clk 0:02:52]} 15. cxd5 {[%clk 0:02:29]}  Bxf1 {[%clk 0:02:53]} 16. Kxf1 {[%clk 0:02:27]}  cxd5 {[%clk 0:02:52]} 17. Nb5 {[%clk 0:02:20]}  Kb7 {[%clk 0:02:25]} 18. Rc1 {[%clk 0:02:16]}  c5 {[%clk 0:02:22]} 19. Ba3 {[%clk 0:02:16]}  a6 {[%clk 0:02:11]} 20. Nd4 {[%clk 0:02:15]}  Rc8 {[%clk 0:02:03]} 21. Nf5 {[%clk 0:02:14]}  Bf8 {[%clk 0:02:03]} 22. Ke2 {[%clk 0:02:12]}  Rg8 {[%clk 0:02:00]} 23. Kf3 {[%clk 0:02:09]}  h5 {[%clk 0:01:57]} 24. h4 {[%clk 0:02:03]}  Nd7 {[%clk 0:01:53]} 25. g3 {[%clk 0:01:55]}  Ne5+ {[%clk 0:01:47]} 26. Kg2 {[%clk 0:01:53]}  a5 {[%clk 0:01:16]} 27. Rhd1 {[%clk 0:01:40]}  d4 {[%clk 0:01:16]} 28. Rc2 {[%clk 0:01:37]}  Rc6 {[%clk 0:01:06]} 29. Rdc1 {[%clk 0:01:31]}  Kb6 {[%clk 0:00:46]} 30. f4 {[%clk 0:01:13]}  Nd3 {[%clk 0:00:41]} 31. Nxd4 {[%clk 0:00:54]}  Nxc1 {[%clk 0:00:41]} 32. Nxc6 {[%clk 0:00:54]}  Nd3 {[%clk 0:00:42]} 33. Rc3 {[%clk 0:00:43]}  Nxf4+ {[%clk 0:00:41]} 34. Kh2 {[%clk 0:00:22]}  Nd5 {[%clk 0:00:41]} 35. Rf3 {[%clk 0:00:23]}  Kxc6 {[%clk 0:00:41]} 36. Rf5 {[%clk 0:00:24]}  Rh8 {[%clk 0:00:37]} 37. Kh3 {[%clk 0:00:21]}  Bd6 {[%clk 0:00:36]} 38. Bb2 {[%clk 0:00:18]}  Rg8 {[%clk 0:00:36]} 39. Rf3 {[%clk 0:00:17]}  Rg4 {[%clk 0:00:32]} 40. Bc1 {[%clk 0:00:15]}  f5 {[%clk 0:00:31]} 41. Bd2 {[%clk 0:00:13]}  f4 {[%clk 0:00:29]} 42. Be1 {[%clk 0:00:09]}  fxg3 {[%clk 0:00:28]} 43. Kg2 {[%clk 0:00:02]}  Nf4+ {[%clk 0:00:28]} 44. Kg1 {[%clk 0:00:01]}  Ne2+ {[%clk 0:00:26]} 45. Kg2 {[%clk 0:00:02]}  Nf4+ {[%clk 0:00:26]} 46. Kg1 {[%clk 0:00:02]}  g2 {[%clk 0:00:26]} 47. Re3 {[%clk 0:00:01]}  c4 {[%clk 0:00:25]} 48. Bf2 {[%clk 0:00:01]}  Bc5 {[%clk 0:00:24]} 0-1


[Site "https://www.chess.com"]